Cogmind - Beta 13 @@@ ROGUE MODE // 2024.07.09 @ 16:16:35 Player: ThatBishHoly Result: Destroyed by G-47 Trooper with Particle Gun Performance ------------- Evolutions (3) 1500 Regions Visited (5) 1000 Robots Destroyed (48) 240 Value Destroyed (1444) 1444 Prototype IDs (3) 60 Alien Tech Used (0) 0 Bonus (32) 32 TOTAL SCORE: 4276 Bonus ------- Follower Combat Kills 32 Cogmind --------- Core Integrity 0/700 Matter 118/300 Energy 36/100 System Corruption 4% Temperature Cool (39) Movement Rolling (80) Location -7/Factory Parts ------- > --- POWER (1) -------- (None) > --- PROPULSION (5) --- Carbon-fiber Leg Wheel Wheel > --- UTILITY (4) ------ Medium Storage Unit Targeting Computer Core Analyzer > --- WEAPON (3) ------- Plasma Cannon > --- INVENTORY (10) --- Improved Cooling System Compact Matter Pod (0) Improved Datajack Peak State ------------ > --- POWER ------------ Improved Deuterium Engine > --- PROPULSION ------- Carbon-fiber Leg Titanium Leg VSS Leg Airjet Gravmag System > --- UTILITY ---------- Small Storage Unit Targeting Computer Core Analyzer Improved Light Armor Plating > --- WEAPON ----------- Gauss Cannon Gauss Cannon Rocket Array > --- INVENTORY -------- Improved Cooling System Insulated Plating Gauss Cannon Mini Assault Cannon Proton Missile Launcher Improved Grenade Launcher Improved Datajack Power Maul [Rating: 45] Favorites ----------- Power Improved Deuterium Engine Engine Improved Deuterium Engine Power Core Micro Nuclear Core Propulsion Improved Hover Unit Leg Carbon-fiber Leg Wheel Wheel Hover Unit Improved Hover Unit Flight Unit Flight Unit Utility Small Storage Unit Device Sensor Array Storage Small Storage Unit Processor Targeting Computer Protection Improved Light Armor Plating Weapon Gauss Cannon Energy Gun Beam Rifle Energy Cannon Ion Cannon Ballistic Gun Light Assault Rifle Ballistic Cannon Gauss Cannon Launcher Rocket Array Impact Weapon Power Maul Special Melee Weapon Improved Datajack Build | -11 -10 -9 -9 -8 -7 ------- Run | Yrd Mat Mat Min Mat Fac Slots Evolved 6 | . . 2 . 2 2 Power . | . . . . . . Propulsion 3 | . . 2 . 1 . Utility 2 | . . . . 1 1 Weapon 1 | . . . . . 1 Parts Attached 70 | 6 4 5 12 12 31 Power 6 | 1 . . 2 1 2 Engine 5 | 1 . . 2 1 1 Core 1 | . . . . . 1 Reactor . | . . . . . . Propulsion 27 | 2 2 2 8 2 11 Treads . | . . . . . . Leg 13 | 2 . . 5 1 5 Wheel 3 | . . . . . 3 Hover 10 | . 2 2 2 1 3 Flight 1 | . . . 1 . . Utility 10 | 1 . . 1 2 6 Device 1 | . . . . 1 . Storage 2 | 1 . . . . 1 Processor 3 | . . . 1 1 1 Hackware . | . . . . . . Protection 4 | . . . . . 4 Artifact . | . . . . . . Weapon 27 | 2 2 3 1 7 12 Energy Gun 5 | 1 2 1 . . 1 Energy Cannon 5 | . . 2 1 1 1 Ballistic Gun 1 | 1 . . . . . Ballistic Cannon 7 | . . . . 2 5 Launcher 7 | . . . . 4 3 Special Weapon . | . . . . . . Impact Weapon 1 | . . . . . 1 Slashing Weapon . | . . . . . . Piercing Weapon . | . . . . . . Special Melee Weapon 1 | . . . . . 1 Unidentified Prototypes 2 | . . . . . 2 Parts Lost 32 | . . 1 3 5 23 Power 3 | . . . . 1 2 Propulsion 17 | . . 1 3 2 11 Utility 4 | . . . . 2 2 Weapon 8 | . . . . . 8 Highest Loss Streak 9 | . . 1 3 3 9 To Critical Strikes . | . . . . . . Average Slot Usage (%) 80 | . 84 75 69 79 86 Engine 5 | . 14 5 4 5 5 Leg 16 | . 7 . 7 28 21 Hover 15 | . 19 40 24 4 8 Storage 9 | . 14 11 11 9 7 Processor 7 | . . . . 8 14 Protection 2 | . . . . . 5 Energy Gun 2 | . 21 13 . . . Energy Cannon 7 | . . 5 22 9 . Ballistic Cannon 6 | . . . . . 14 Launcher 3 | . . . . 8 4 Naked Turns . | . . . . . . Heaviest Build 48 | 10 14 17 22 24 48 Greatest Support 60 | 20 20 28 55 55 60 Greatest Overweight (x) 7 | . . 1 7 . 5 Average Overweight (x) . | . . . 1 . . Largest Inventory Capacity 10 | 8 8 8 8 8 10 Average Capacity 8 | 6 8 8 8 8 8 Most Carried 9 | 4 8 8 8 8 9 Average Carried 6 | . 4 7 7 5 6 Final Capacity 10 | 8 8 8 8 8 10 Final Carried 8 | . 8 7 5 8 3 Class Distribution -------------------- 54% | Mutant 22% | Gunner 13% | Scavenger-Mutant 10% | Scavenger-Gunner Dominant Class ---------------- Mutant | -10/Materials Mutant | -9/Materials Mutant | -9/Mines Mutant | -8/Materials Gunner | -7/Factory Resources | -11 -10 -9 -9 -8 -7 ----------- Run | Yrd Mat Mat Min Mat Fac Matter Collected 1270 | 231 52 . 225 82 680 Remotely . | . . . . . . Salvage Created 1126 | . 52 . 128 203 743 Parts 77 | . 5 . 8 17 47 Haulers Intercepted . | . . . . . . Recyclers Shooed 1 | . . . . . 1 Parts Field Recycled . | . . . . . . Retrieved Matter . | . . . . . . Parts Self-Destructed . | . . . . . . Prevented . | . . . . . . Kills | -11 -10 -9 -9 -8 -7 ------- Run | Yrd Mat Mat Min Mat Fac Combat Hostiles Destroyed 34 | . 3 . 6 7 18 Guns 4 | . 3 . . . 1 Cannons 17 | . . . 4 3 10 AOE 11 | . . . 1 4 6 Classes Destroyed 8 | . 1 . 1 2 4 Worker 5 | . . . . . 5 Builder 8 | . . . . 3 5 Watcher 1 | . . . . . 1 Swarmer 11 | . 3 . 4 4 . Grunt 10 | . . . 2 2 6 Sentry 7 | . . . . 1 6 Hunter 3 | . . . . . 3 Programmer 3 | . . . . . 3 Best Kill Streak 10 | . 3 . 4 6 10 Combat Bots Only 4 | . 3 . 4 4 4 Max Kills in Single Turn 5 | . 1 . 1 3 5 Gunslinging . | . . . . . . Exploded 3 | . . . 1 3 2 Melee . | . . . . . . Uniques/NPCs Destroyed . | . . . . . . Combat | -11 -10 -9 -9 -8 -7 -------- Run | Yrd Mat Mat Min Mat Fac Hostile Shots Fired 556 | . 19 27 22 37 451 Missed 179 | . 2 8 8 7 154 Damage Taken 4455 | . 164 225 148 454 3464 Core 851 | . 23 68 21 37 702 Absorbed by Shields 16 | . . . . . 16 Ignored by Resistances 6 | . . . . . 6 Core Remaining (%) 90 | 100 90 . 77 93 . Volleys Fired 103 | . 20 3 9 18 53 Largest 3 | . 2 2 2 2 3 Hottest 144 | . 112 120 120 135 144 Shots Fired 194 | . 38 5 18 36 97 Gun 47 | . 38 1 . . 8 Cannon 133 | . . 4 18 33 78 Launcher 14 | . . . . 3 11 Special . | . . . . . . Kinetic 87 | . 10 . . 6 71 Thermal 85 | . 28 5 18 27 7 Explosive 14 | . . . . 3 11 Electromagnetic 8 | . . . . . 8 Robot Hit Streak 16 | . 7 2 9 3 16 Robot Miss Streak 6 | . 3 1 3 6 4 Penetration Max 1 | . . . . . 1 Secondary Targets . | . . . . . . Shots Hit Robots 115 | . 11 3 9 17 75 Core Hits 77 | . 4 . 7 14 52 Critical Kills . | . . . . . . Critical Parts Destroyed 1 | . . . . . 1 Critical Strikes 8 | . . . . . 8 Blast 7 | . . . . . 7 Smash 1 | . . . . . 1 Melee Attacks 6 | . . . . . 6 Impact 6 | . . . . . 6 Slashing . | . . . . . . Piercing . | . . . . . . Sneak Attacks 1 | . . . . . 1 Combat Hostiles . | . . . . . . Follow-up Attacks . | . . . . . . Damage Inflicted 4270 | . 99 100 383 783 2905 Guns 258 | . 99 15 . . 144 Cannons 2136 | . . 70 234 414 1418 Explosions 1582 | . . . 144 365 1073 Melee 210 | . . . . . 210 Ramming 84 | . . 15 5 4 60 Kinetic 1343 | . 52 . . 58 1233 Thermal 1147 | . 47 85 378 356 281 Explosive 1342 | . . . . 365 977 Electromagnetic 144 | . . . . . 144 Impact 210 | . . . . . 210 Slashing . | . . . . . . Piercing . | . . . . . . Highest Corruption 4 | . . . . . 4 Average Corruption 1 | . . . . . 1 Corruption Purged . | . . . . . . Corruption Blocked . | . . . . . . Effects 10 | . . . . . 10 Message Errors 1 | . . . . . 1 Matter Fused 4 | . . . . . 4 Heat Flow Errors 2 | . . . . . 2 Energy Discharges 1 | . . . . . 1 Data Loss (minor) 2 | . . . . . 2 Overload Shots . | . . . . . . Overflow Damage 259 | . . . 7 80 172 Projectiles 67 | . . . 7 30 30 Explosions 155 | . . . . 50 105 Melee 37 | . . . . . 37 Knockbacks 9 | . . . . . 9 Impact 2 | . . . . . 2 Kinetic 7 | . . . . . 7 Secondary . | . . . . . . Self-Inflicted Damage 548 | . 35 7 2 57 447 Shots 14 | . 1 . . 2 11 Rammed 8 | . . 3 1 . 4 Targets Rammed 19 | . . 3 1 2 13 Kicked 11 | . . . . 2 9 Crushed . | . . . . . . Highest Temperature 726 | . 478 60 190 726 308 Average Temperature 143 | . 177 32 92 259 92 Received Heat Transfer 1341 | . . 114 54 180 993 Effects 24 | . 5 . . 15 4 Shutdowns 6 | . 1 . . 5 . Energy Bleed 3 | . 1 . . 1 1 Interference 3 | . . . . . 3 Matter Decay 1 | . 1 . . . . Short Circuit 2 | . 2 . . . . Damage (minor) 3 | . . . . 3 . Damage (major) 6 | . . . . 6 . Siege Activations . | . . . . . . Robots Corrupted . | . . . . . . Combat Hostiles . | . . . . . . Parts Fried 1 | . . . . . 1 Impact Corruptions 1 | . . . . . 1 Robots Melted 1 | . . . 1 . . Combat Hostiles 1 | . . . 1 . . Parts Melted 5 | . 2 . 1 1 1 Heat Transferred 1723 | . 100 148 570 555 350 Parts Sabotaged . | . . . . . . Parts Stolen . | . . . . . . Parts Stripped . | . . . . . . Power Chain Reactions . | . . . . . . Alert | -11 -10 -9 -9 -8 -7 ------- Run | Yrd Mat Mat Min Mat Fac Peak Influence 398 | . 106 113 191 202 398 Initial 44 | . . 44 39 15 23 Average 98 | . 59 87 84 53 138 Maximum Alert Level 1 | . . . . 1 1 Low Security (%) 84 | 100 100 100 100 84 68 Level 1 15 | . . . . 15 31 Level 2 . | . . . . . . Level 3 . | . . . . . . Level 4 . | . . . . . . Level 5 . | . . . . . . High Security . | . . . . . . Max Security . | . . . . . . Squads Dispatched 12 | . . . 1 2 9 Investigation 2 | . . . 1 . 1 Extermination 3 | . . . . . 3 Reinforcement 4 | . . . . 2 2 Assault . | . . . . . . Garrison 3 | . . . . . 3 Intercept . | . . . . . . Searches Triggered . | . . . . . . Construction Impeded 1 | . . . . . 1 Haulers Reinforced . | . . . . . . Active Scanning Responses . | . . . . . . Cargo Convoy Interrupts . | . . . . . . Stealth | -11 -10 -9 -9 -8 -7 --------- Run | Yrd Mat Mat Min Mat Fac Distress Signals 1 | . . . . . 1 Communications Jammed . | . . . . . . Distress Signals . | . . . . . . Times Spotted 57 | . 5 7 7 13 25 Peak Tracking Total 6 | . 3 5 4 5 6 Tactical Retreats 1 | . . 1 . . . Traps | -11 -10 -9 -9 -8 -7 ------- Run | Yrd Mat Mat Min Mat Fac Traps Triggered 2 | . . 1 . . 1 Indirectly . | . . . . . . Trap Hack Attempts . | . . . . . . Triggered . | . . . . . . Disarmed . | . . . . . . Reprogrammed . | . . . . . . Reused . | . . . . . . Traps Extracted . | . . . . . . Installed . | . . . . . . Triggered . | . . . . . . Machines | -11 -10 -9 -9 -8 -7 ---------- Run | Yrd Mat Mat Min Mat Fac Machines Disabled 10 | . 1 1 2 3 3 Max in Single Turn 2 | . 1 1 2 1 2 Machines Repaired . | . . . . . . Machines Dismantled . | . . . . . . Machines Sabotaged . | . . . . . . Overloaded Fab Kills . | . . . . . . Hacking | -11 -10 -9 -9 -8 -7 --------- Run | Yrd Mat Mat Min Mat Fac Machines Accessed 10 | . 1 3 1 2 3 Terminals 6 | . 1 3 1 1 . Fabricators 1 | . . . . . 1 Repair Stations . | . . . . . . Recycling Units 2 | . . . . 1 1 Scanalyzers 1 | . . . . . 1 Garrison Access . | . . . . . . Total Hacks 25 | . 1 7 5 4 8 Successful 19 | . 1 4 5 3 6 Failed 6 | . . 3 . 1 2 Catastrophic 1 | . . 1 . . . Database Lockouts . | . . . . . . Manual 4 | . . . 1 3 . Terminals 16 | . 1 7 5 3 . Fabricators 3 | . . . . . 3 Repair Stations . | . . . . . . Recycling Units 3 | . . . . 1 2 Scanalyzers 3 | . . . . . 3 Garrison Access . | . . . . . . Terminal Hacks 12 | . 1 4 5 2 . Record 3 | . . . 3 . . Terminal Index 2 | . . . 1 1 . Alert Level 1 | . . . . 1 . Dispatch Records 1 | . . . 1 . . Reinforcement Status 1 | . . 1 . . . Recall Reinforcements 1 | . . 1 . . . Hauler Manifests 1 | . . 1 . . . Zone Layout 2 | . 1 1 . . . Fabricator Hacks 2 | . . . . . 2 Load Schematic 1 | . . . . . 1 Build 1 | . . . . . 1 Repair Station Hacks . | . . . . . . Recycling Unit Hacks 2 | . . . . 1 1 Report Inventory 2 | . . . . 1 1 Scanalyzer 3 | . . . . . 3 Insert Component 2 | . . . . . 2 Analyze 1 | . . . . . 1 Garrison Access Hacks . | . . . . . . Unauthorized Hacks . | . . . . . . Terminals . | . . . . . . Fabricators . | . . . . . . Repair Stations . | . . . . . . Recycling Units . | . . . . . . Scanalyzers . | . . . . . . Garrison Access . | . . . . . . Data Cores Recovered . | . . . . . . Used . | . . . . . . Hacking Detections 5 | . . 1 1 1 2 Full Trace Events 3 | . . 1 1 . 1 Feedback Events . | . . . . . . Feedback Blocked . | . . . . . . Robot Schematics Acquired . | . . . . . . Robots Built . | . . . . . . Authchips . | . . . . . . Time . | . . . . . . Total Robot Build Rating . | . . . . . . Part Schematics Acquired 1 | . . . . . 1 Parts Built . | . . . . . . Authchips . | . . . . . . Time 134 | . . . . . 134 Total Part Build Rating . | . . . . . . Parts Repaired . | . . . . . . Time . | . . . . . . Parts Recycled . | . . . . . . Recycled Matter . | . . . . . . Retrieved Matter . | . . . . . . Retrieved Components . | . . . . . . Parts Scanalyzed 1 | . . . . . 1 Part Schematics Acquired 1 | . . . . . 1 Parts Damaged . | . . . . . . Bothacking | -11 -10 -9 -9 -8 -7 ------------ Run | Yrd Mat Mat Min Mat Fac Used RIF Installer . | . . . . . . Robots Hacked . | . . . . . . Non-combat . | . . . . . . Combat . | . . . . . . Robot Hacks Applied . | . . . . . . Relay Couplers Released . | . . . . . . Fabnet Peak Effective % . | . . . . . . Robots Rewired . | . . . . . . Allies Hacked . | . . . . . . Hacks Repelled . | . . . . . . Allies | -11 -10 -9 -9 -8 -7 -------- Run | Yrd Mat Mat Min Mat Fac Total Allies 3 | . . . 3 . . Largest Group 3 | . . . 3 . . Highest-Rated Group 75 | . . . 75 . . Highest-Rated Ally 31 | . . . 31 . . Total Orders . | . . . . . . Ally Attacks 14 | . . . 14 . . Total Damage 167 | . . . 167 . . Kills 5 | . . . 5 . . Allies Corrupted . | . . . . . . Allies Melted . | . . . . . . Intel | -11 -10 -9 -9 -8 -7 ------- Run | Yrd Mat Mat Min Mat Fac Robot Analysis Total . | . . . . . . Derelict Logs Recovered 2 | . . . 2 . . Drone Launches . | . . . . . . Drone Recoveries . | . . . . . . Exploration | -11 -10 -9 -9 -8 -7 ------------- Run | Yrd Mat Mat Min Mat Fac Turns Passed 3387 | 53 290 241 803 567 1433 Spaces Moved 2490 | 44 307 327 531 376 905 Core 63 | 20 . . 32 . 11 Treads . | . . . . . . Legs 1423 | 24 67 . 99 376 857 Wheels 5 | . . . . . 5 Hover 996 | . 240 327 397 . 32 Flight 3 | . . . 3 . . Fastest Speed 48 | 50 56 48 116 105 80 Average Speed 110 | 88 69 63 141 120 120 Slowest Speed 460 | 120 120 116 460 126 300 Overloaded Moves . | . . . . . . Propulsion Burnouts . | . . . . . . Robots Hopped . | . . . . . . Cave-ins Triggered . | . . . . . . Exploration Rate (%) 31 | 3 32 21 84 34 14 Regions Visited 5 Branch Regions 1 Pre-discovered Areas 1 | . . . 1 . . Known Exits Taken 1 | . . . 1 . . Unknown Exits Taken 4 | 1 1 1 . 1 . Scrap Searched 2 | . . . 2 . . Spaces Dug . | . . . . . . Terrain Destroyed 265 | . . . 27 27 211 Melee . | . . . . . . Projectile 34 | . . . 3 10 21 AOE 231 | . . . 24 17 190 Terrain Rammed . | . . . . . . Walls Destroyed . | . . . . . . Machines Disabled . | . . . . . . Actions | -11 -10 -9 -9 -8 -7 --------- Run | Yrd Mat Mat Min Mat Fac Total 2915 | 59 346 356 562 456 1136 Wait 128 | . . 9 . 23 96 Move 2485 | 43 306 326 530 375 905 Hop . | . . . . . . Pick Up 68 | 8 12 6 2 17 23 Fast Attach 9 | . . . 9 . . Attach 39 | 6 2 4 1 5 21 Detach . | . . . . . . Swap 22 | . 2 1 2 7 10 Drop 36 | 2 4 4 8 9 9 Fire 103 | . 20 3 9 18 53 Melee 6 | . . . . . 6 Ram 8 | . . 3 1 . 4 Kick 11 | . . . . 2 9 Crush . | . . . . . . Escape Stasis . | . . . . . . Rewire . | . . . . . . Trap . | . . . . . . Miscellaneous . | . . . . . . Route ------- -11/Scrapyard -10/Materials -9/Materials -9/Mines (discovered 2 exits: *Mat x2) -8/Materials -7/Factory History --------- Turn | Location | Event 8 | -11/Scrapyard | Discovered new exit (range 16) 54 | -11/Scrapyard | Entered Materials 318 | -10/Materials | Build established: Mutant 329 | -10/Materials | Discovered new exit (range 16) 344 | -10/Materials | Entered another Materials area 344 | -9/Materials | Evolved 2 slots: Propulsion x2 495 | -9/Materials | Discovered new exit (range 12) 585 | -9/Materials | Entered Mines 650 | -9/Mines | Learned Materials trap positions 653 | -9/Mines | Received a Mining Laser from a helpful Derelict 724 | -9/Mines | Learned location of Zion (-6) 1042 | -9/Mines | Discovered new exit (range 5) 1084 | -9/Mines | Lost 3 parts (3n) 1269 | -9/Mines | Discovered new exit (range 9) 1357 | -9/Mines | Identified exit to Materials 1388 | -9/Mines | Entered Materials 1388 | -8/Materials | Evolved 2 slots: Propulsion x1, Utility x1 1389 | -8/Materials | Loaded intel: 21 trap records 1572 | -8/Materials | Build established: Scavenger-Mutant 1727 | -8/Materials | Lost 3 parts (1p1n1u) 1899 | -8/Materials | Discovered new exit (range 15) 1955 | -8/Materials | Entered Factory 1955 | -7/Factory | Evolved 2 slots: Utility x1, Weapon x1 1962 | -7/Factory | Build established: Mutant 2418 | -7/Factory | Found Prototype Launcher 2419 | -7/Factory | Identified Rocket Array 2846 | -7/Factory | Build established: Gunner 3176 | -7/Factory | Lost 6 parts (2n1u3w) 3193 | -7/Factory | Core integrity fell below 50% 3226 | -7/Factory | Core integrity fell below 20% 3260 | -7/Factory | Lost 9 parts (1p3n1u4w) 3388 | -7/Factory | Destroyed by G-47 Trooper with Particle Gun Last Messages --------------- 03320_ Kicked U-05 Engineer. 03322_ System corrupted: Matter fused (-6). 03322_ Kicked U-05 Engineer. 03331_ Gravmag System destroyed. 03331_ Destroyed Gravmag System. 03337_ Imp. Grenade Launcher destroyed. 03339_ Destroyed Shock Rifle. 03341_ The unstable cave ceiling collapses. 03341_ Destroyed Gravmag System. 03343_ P-60 Hacker destroyed. 03346_ The unstable cave ceiling collapses. 03347_ Acquired 27 matter. 03354_ U-05 Engineer lays Concrete. 03355_ U-05 Engineer builds a Wall. 03357_ Acquired Wheel. 03358_ Kicked U-05 Engineer. 03366_ System corrupted: Component data lost. 03378_ Acquired Wheel. 03384_ Wheel destroyed. 03388_ System corrupted: Energy discharge (-16). Map ----- +----------------------------------------------------+ | ??# #!! ## """"" #??????????# # | | ??# #!! ## """"" #??????????#% # | | ??# ########### """ #????????### """ # | | ??# #??# #????????#"% Y" # | | ??# #??# # #????????###* """ # | | ?###########??# " " #?????????#" # | | ?# #??# "R" # ################+### | | ?# ! "" " #??# """ | | ## " #??# #################### | | ## ############ # #?????????????????# | | #####+###### # # #?????????????????# | | ??# %#??# # ### #?????????????????# | | ??# % #### # #####?????????????????# | | ### + """ """ # #?????????????????# | | ## #### """ """ # % #?????????????????# | | ## #??# """ """ + #?????????????????# | | #### ###??# #g +?????????????????# | | #??# #????# """ # g #?????????????????# | | #### #????# ]"" """ #* #?????????????????## | | # #????# S"" """ # #??????????????????? | | # #????# "" # #??????????????????? | | ## #????# # #??????????????????? | | ################### #??????????????????? | | # #???????# #??????????????????? | | # #???????# #??????????????????? | | #???????#@ #??????????????????? | | # #???????# #??????????????????? | | ### #####???????# #??????????????????? | | #????????# #??????????????????? | | [%! #????????# #??????????????????? | | #######??# ####???########????? | | #??# #T #####! ????? | | % ##+### #??# # """" ????? | | # # # # # #### # """" ???? | | # ### # !! # # """" #??? | | "G""" ## !! # + """" #??? | | " """ # !! # # """" #??? | | ? ? # # # """" #??? | | ???% ########### """"" #| ]#??? | | ?? #??????????# """"" ######## #??? | | ??" ???????????# ^ """ !!#??????##########??? | | ???? ????????????# ! #??????????????????? | | ?????????????????# """"" #??????????????????? | | ?????????????????/ """"" #??????????????????? | | ???????????????? # ""? #??????????????????? | | ??????????????? # * ?? #??????????????????? | | ??????????????? ?# ? #??????????????????? | | ??????????????/#?# ? #??????????????????? | | ????????????????? ??? #??????????????????? | | ????????????????? ???? +??????????????????? | +----------------------------------------------------+ Best States ------------- Heat Dissipation 34 Energy Generation 16 Energy Capacity 290 Matter Stores 300 Matter Capacity 300 Sight Range 16 Robot Scan Range 14 Terrain Scan Density 10 Armor Coverage 225 Resistance: EM 15 Evasion (%) 55 Targeting Accuracy 5 Core Analysis 6 Item Schematics ----------------- Mni. Assault Cannon | -7/Factory | Scanalyzed Robot Schematics ------------------ None Fabricated ------------ Nothing Alien Tech Used ----------------- None Achievements -------------- Short-term Sacrifices Challenges ------------ None Game ------ Seed HypercooledRegenerativeLeg Manual? 0 Play Time 00:46:33 Cumulative 40.3 hours Start 2024.07.09 @ 14:27:22 End 2024.07.09 @ 16:16:35 Sessions 1 Manual Loads 0 Difficulty Rogue Special Mode None Game No. 114 Rogue 114 Adventurer 0 Explorer 0 Win Type - Total 0 Types 0/0/0/0/0/0/0/0/0 Lore% 18 Gallery% 36 Achievement% 24 Wizard Run 0 Options --------- Layout 0 ASCII 0 Keyboard 0 Movement Arrows Keybinds 0 Fullscreen 1 Font 12/Smallcaps Map View 38x28 Zoom Use 96% Tactical HUD 1 Map Filters NONE Filters NONE Steam SD RUN: dfae1516-90c3-45fa-b078-c108d151d884